[Event "Gibraltar Challengers A 2020"]
[Site "Caleta"]
[Date "2020.01.21"]
[Round "2.31"]
[White "Verhoef, Jaap"]
[Black "O`neil, Jim"]
[Result "1/2-1/2"]
[ECO "B98"]
[WhiteElo "2015"]
[BlackElo "1870"]
[Annotator "NA"]
[PlyCount "129"]
[EventDate "2020.01.20"]
[EventType "swiss"]
[EventCountry "GGB"]
[SourceTitle "playchess.com"]
[Source "ChessBase"]
[SourceQuality "1"]
[TimeControl "6600+10"]

1. e4 {[%emt 0:00:00]} c5 {[%emt 0:00:02]} 2. Nf3 {[%emt 0:00:00]} d6 {[%emt 0:00:17]} 3. d4 {[%emt 0:00:00]} cxd4 {[%emt 0:00:11]} 4. Nxd4 {[%emt 0:00:00]} Nf6 {[%emt 0:00:21]} 5. Nc3 {[%emt 0:00:00]} a6 {[%emt 0:00:16]} 6. Bg5 {[%emt 0:00:05]} e6 {[%emt 0:00:50]} 7. f4 {[%emt 0:00:05]} Be7 {[%emt 0:00:18]} 8. Qf3 {[%emt 0:00:05]} Nbd7 {[%emt 0:00:52]} 9. Bc4 {[%emt 0:03:54]} h6 {[%emt 0:05:13]} 10. Bxf6 {[%emt 0:03:39] B98: Sicilian Najdorf: 6 Bg5 e6 7 f4 Be7, sidelines} Nxf6 {[%emt 0:00:47]} (10... Bxf6 11. O-O-O Qb6 12. Nxe6 fxe6 13. Bxe6 Nf8 14. Bb3 Bxc3 15. Qxc3 Be6 16. Ba4+ Kf7 17. f5 {½-½ (17) Betker,J (2452)-Janisch,M (2387) GER email 2016}) 11. f5 {[%emt 0:00:08]} e5 {[%emt 0:03:11]} 12. Nde2 {[%emt 0:05:16]} b5 {[%emt 0:01:52]} 13. Bb3 {[%emt 0:01:35]} Bb7 {[%emt 0:00:47]} 14. Ng3 $146 {[%emt 0:10:32]} ({Predecessor:} 14. O-O-O O-O 15. g4 b4 16. Nd5 a5 17. Nxf6+ Bxf6 {0-1 (31) Kosakowski,J (1724)-Liang,A (2006) Maribor 2012}) 14... Rc8 {[%emt 0:01:08]} 15. Nh5 {[%emt 0:14:09]} Nxh5 {[%emt 0:04:01]} 16. Qxh5 {[%emt 0:02:09]} O-O {[%emt 0:00:12]} 17. O-O-O {[%emt 0:01:52]} Rxc3 {[%emt 0:11:12]} 18. bxc3 {[%emt 0:00:07]} Qa5 {[%emt 0:02:05]} (18... Bxe4 $17 19. Rhe1 Bc6) 19. Rd3 {[%emt 0:11:57]} Bxe4 {[%emt 0:05:59]} 20. Rg3 {[%emt 0:00:14]} Bg5+ {[%emt 0:00:59]} 21. Rxg5 {[%emt 0:12:16]} hxg5 {[%emt 0:03:21]} 22. Qxg5 {[%emt 0:00:16]} Qd8 {[%emt 0:03:20]} 23. Qg4 {[%emt 0:00:47]} d5 {[%emt 0:02:37]} 24. Rf1 {[%emt 0:00:26]} Qf6 {[%emt 0:04:25]} 25. Qd1 {[%emt 0:06:54]} Rd8 {[%emt 0:03:04]} 26. g4 {[%emt 0:00:21]} Qh6+ {[%emt 0:03:38]} 27. Qd2 {[%emt 0:04:38]} f6 {[%emt 0:12:11]} 28. Re1 {[%emt 0:02:25]} Kf8 {[%emt 0:02:28]} 29. h4 {[%emt 0:00:13]} Qxd2+ {[%emt 0:01:23]} 30. Kxd2 {[%emt 0:00:02]} Ke7 {[%emt 0:00:22]} 31. Ke3 {[%emt 0:01:10]} ({White should play} 31. Re3 $15) 31... Rh8 {[%emt 0:00:52]} 32. h5 {[%emt 0:00:05]} Rc8 {[%emt 0:00:45]} 33. Kd2 {[%emt 0:00:36]} Kd6 {[%emt 0:00:25]} (33... Bf3 $19 34. Rb1 Kd6) 34. Re3 $11 {[%emt 0:00:27]} Bg2 {[%emt 0:07:27]} 35. Rg3 {[%emt 0:05:24]} Be4 {[%emt 0:05:14]} 36. g5 $2 {[%emt 0:02:31]} Bxf5 {[%emt 0:01:21]} 37. gxf6 {[%emt 0:00:02]} gxf6 {[%emt 0:00:51]} 38. Rf3 {[%emt 0:00:01]} Be6 {[%emt 0:01:54]} 39. Rxf6 {[%emt 0:00:21]} e4 {[%emt 0:01:28]} 40. h6 {[%emt 0:03:40]} Rh8 {[%emt 0:00:40]} 41. Rg6 {[%emt 0:01:00]} Ke5 {[%emt 0:00:20]} 42. Rg5+ {[%emt 0:00:10]} Kf6 {[%emt 0:02:03]} 43. Rh5 {[%emt 0:00:28]} Kg6 {[%emt 0:00:36]} 44. Re5 {[%emt 0:00:08]} Bf7 {[%emt 0:00:58]} 45. Ke3 {[%emt 0:02:32]} Kf6 {[%emt 0:00:38]} 46. Kd4 {[%emt 0:00:21]} Rd8 {[%emt 0:03:45]} 47. h7 {[%emt 0:01:47]} Kg7 {[%emt 0:00:09]} 48. Rf5 {[%emt 0:00:08]} Rd7 {[%emt 0:00:30]} 49. Rxf7+ {[%emt 0:05:10]} Rxf7 {[%emt 0:00:13]} 50. Bxd5 {[%emt 0:00:01]} Rd7 {[%emt 0:00:40]} 51. Kxe4 {[%emt 0:00:02]} Kxh7 {[%emt 0:00:17]} 52. c4 {[%emt 0:00:22]} bxc4 {[%emt 0:01:23]} 53. Bxc4 {[%emt 0:00:06]} a5 {[%emt 0:00:05]} 54. Bd5 {[%emt 0:01:43]} Kg7 {[%emt 0:00:16]} 55. Ke5 {[%emt 0:00:13]} Kf8 {[%emt 0:01:09]} 56. c4 {[%emt 0:00:10]} Ke7 {[%emt 0:00:12]} 57. c5 {[%emt 0:00:47]} Kd8 {[%emt 0:01:07]} 58. c6 {[%emt 0:00:36]} Rh7 {[%emt 0:00:12]} 59. Kd6 {[%emt 0:00:16]} Rc7 {[%emt 0:02:55]} 60. a4 {[%emt 0:00:27]} Ra7 {[%emt 0:00:06]} 61. Be6 {[%emt 0:00:17]} Rc7 {[%emt 0:00:02]} 62. Kc5 {[%emt 0:00:50]} Re7 {[%emt 0:00:19]} 63. Kd6 {[%emt 0:00:20]} Rc7 {[%emt 0:00:02]} 64. Bd7 $11 {[%emt 0:00:34]} Rxd7+ 65. cxd7 {[%emt 0:01:19]} 1/2-1/2

[Event "Gibraltar Challengers A 2020"]
[Site "Caleta"]
[Date "2020.01.21"]
[Round "2.32"]
[White "Kaplan, Amiram"]
[Black "Bujakevich, Aleksandr"]
[Result "1/2-1/2"]
[WhiteElo "1880"]
[BlackElo "2014"]
[Annotator "NA"]
[PlyCount "20"]
[EventDate "2020.01.20"]
[EventType "swiss"]
[EventCountry "GGB"]
[SourceTitle "playchess.com"]
[Source "ChessBase"]
[SourceQuality "1"]
[TimeControl "6600+10"]

1. e4 {[%emt 0:00:00]} e5 {[%emt 0:00:00]} 2. Nf3 {[%emt 0:00:00]} Nc6 {[%emt 0:00:04]} 3. Bb5 {[%emt 0:01:12]} a6 {[%emt 0:00:10]} 4. Ba4 {[%emt 0:00:05]} Nf6 {[%emt 0:00:09]} 5. O-O {[%emt 0:00:18]} b5 {[%emt 0:00:18]} 6. Bb3 {[%emt 0:00:08]} Bb7 {[%emt 0:00:22]} 7. Re1 {[%emt 0:01:28]} Bc5 {[%emt 0:00:32]} 8. c3 {[%emt 0:02:14]} d6 $11 {[%emt 0:00:18]} 9. d4 {[%emt 0:02:34]} Bb6 {[%emt 0:00:11]} 10. Bg5 {[%emt 0:00:55]} h6 {[%emt 0:01:38]} 1/2-1/2

[Event "Gibraltar Challengers A 2020"]
[Site "Caleta"]
[Date "2020.01.21"]
[Round "2.33"]
[White "Burke, Mitchell R"]
[Black "Auvinen, Esa"]
[Result "1-0"]
[ECO "C33"]
[WhiteElo "2001"]
[BlackElo "1850"]
[Annotator "NA"]
[PlyCount "55"]
[EventDate "2020.01.20"]
[EventType "swiss"]
[EventCountry "GGB"]
[SourceTitle "playchess.com"]
[Source "ChessBase"]
[SourceQuality "1"]
[TimeControl "6600+10"]

1. e4 {[%emt 0:02:51]} e5 {[%emt 0:04:36]} 2. f4 {[%emt 0:00:55]} exf4 {[%emt 0:00:20]} 3. Bc4 {[%emt 0:00:14]} d6 {[%emt 0:05:01]} 4. d4 {[%emt 0:00:20]} Qh4+ {[%emt 0:01:29]} 5. Kf1 {[%emt 0:00:05]} Bg4 {[%emt 0:00:52]} 6. Nf3 {[%emt 0:10:45] C33: King's Gambit Accepted: 3 Nc3 and 3 Bc4} Nc6 {[%emt 0:10:35]} 7. Nc3 {[%emt 0:05:01]} Bxf3 $1 {[%emt 0:01:28]} 8. gxf3 {[%emt 0:00:44]} Na5 $146 {[%emt 0:04:24]} (8... g5 $17 9. Nd5 O-O-O) ({Predecessor:} 8... Nge7 9. Nd5 Nxd5 10. Bxd5 Nd8 11. Qd2 {0-1 (22) Sosa,T (2520)-Oratovsky,M (2423) Elgoibar 2019}) 9. Bb5+ {[%emt 0:19:59]} c6 {[%emt 0:00:48]} 10. Bd3 {[%emt 0:00:17]} b5 {[%emt 0:02:28]} 11. b4 {[%emt 0:05:16]} Nc4 {[%emt 0:09:27]} 12. Bxc4 {[%emt 0:09:38]} bxc4 {[%emt 0:00:12]} 13. Qe2 {[%emt 0:00:16]} Ne7 {[%emt 0:03:56]} 14. Qxc4 {[%emt 0:01:34]} g6 {[%emt 0:03:11]} 15. b5 {[%emt 0:06:33]} Rc8 {[%emt 0:03:11]} 16. bxc6 {[%emt 0:07:09]} Rxc6 {[%emt 0:03:30]} 17. Qa4 $1 {[%emt 0:11:05]} Qh3+ {[%emt 0:07:41]} 18. Kf2 {[%emt 0:00:29]} Qd7 {[%emt 0:01:33]} 19. Ne2 {[%emt 0:08:47]} g5 {[%emt 0:03:04]} 20. h4 {[%emt 0:00:46]} f6 {[%emt 0:00:50]} 21. d5 {[%emt 0:04:27]} Rc5 {[%emt 0:03:24]} 22. Qxd7+ {[%emt 0:00:20]} Kxd7 {[%emt 0:00:02]} 23. Bb2 {[%emt 0:00:45]} Rxc2 {[%emt 0:02:23]} 24. Bxf6 {[%emt 0:00:15]} Rg8 {[%emt 0:00:05]} 25. hxg5 {[%emt 0:01:35]} Rg6 $18 {[%emt 0:08:31]} 26. Rxh7 {[%emt 0:00:36]} Ke8 {[%emt 0:02:18]} 27. Rb1 {[%emt 0:00:54]} Rc8 {[%emt 0:03:39]} 28. Nxf4 {[%emt 0:00:42]} 1-0

[Event "Gibraltar Challengers A 2020"]
[Site "Caleta"]
[Date "2020.01.21"]
[Round "2.34"]
[White "Niharika Ch"]
[Black "Skutta, Bernd"]
[Result "0-1"]
[ECO "B15"]
[WhiteElo "1865"]
[BlackElo "1998"]
[Annotator "NA"]
[PlyCount "64"]
[EventDate "2020.01.20"]
[EventType "swiss"]
[EventCountry "GGB"]
[SourceTitle "playchess.com"]
[Source "ChessBase"]
[SourceQuality "1"]
[TimeControl "6600+10"]

1. e4 {[%emt 0:00:00]} g6 {[%emt 0:06:59]} 2. d4 {[%emt 0:00:00]} Bg7 {[%emt 0:00:02]} 3. Nc3 {[%emt 0:00:08]} c6 {[%emt 0:00:14]} 4. Be3 {[%emt 0:00:18]} d5 {[%emt 0:00:23]} 5. f3 {[%emt 0:00:11]} Qb6 {[%emt 0:00:42]} 6. Qd2 {[%emt 0:05:46]} Qxb2 {[%emt 0:00:23]} 7. Rb1 {[%emt 0:00:44]} Qa3 {[%emt 0:00:11]} 8. Rb3 {[%emt 0:00:37] B15: Caro-Kann: 3 Nc3: 3...g6 and 3...dxe4 4 Nxe4 Nf6 5 Nxf6+ exf6} (8. exd5 Nf6 9. Bc4 O-O 10. Nge2 b5 11. Bb3 b4 12. Na4 Nxd5 13. Bh6 Nc3 14. Bxg7 Kxg7 15. Nexc3 bxc3 16. Qxc3 {½-½ (113) Kadric,D (2554)-Saric,I (2695) Skopje 2018}) 8... Qa5 {[%emt 0:03:05]} 9. exd5 {[%emt 0:02:34]} Nf6 {[%emt 0:00:19]} 10. dxc6 {[%emt 0:06:20]} bxc6 {[%emt 0:00:15]} 11. Nge2 $146 {[%emt 0:06:27]} ({Predecessor:} 11. Bd3 O-O 12. Nge2 Nbd7 13. O-O Nb6 14. Nb1 Qxd2 15. Nxd2 Nfd5 {0-1 (42) Escobar Medina,A (2290)-Almeida Quintana,O (2518) Medellin 2016}) 11... O-O {[%emt 0:03:32]} 12. Nf4 {[%emt 0:02:02]} Nbd7 {[%emt 0:04:25]} 13. Bd3 {[%emt 0:02:05]} e5 {[%emt 0:00:43]} 14. dxe5 {[%emt 0:01:56]} Nxe5 {[%emt 0:00:49]} 15. O-O {[%emt 0:00:42]} Nxd3 {[%emt 0:13:41]} 16. cxd3 {[%emt 0:03:36]} Ba6 {[%emt 0:08:03]} 17. Rd1 {[%emt 0:13:35]} Rfe8 {[%emt 0:10:47]} 18. Ne4 {[%emt 0:07:59]} Qe5 {[%emt 0:02:10]} 19. Ne2 {[%emt 0:11:11]} c5 {[%emt 0:12:15]} (19... Rad8 $15) 20. N2g3 {[%emt 0:03:53]} Nxe4 {[%emt 0:04:21]} 21. dxe4 {[%emt 0:07:07]} c4 $17 {[%emt 0:06:02]} 22. Ra3 {[%emt 0:00:55]} c3 {[%emt 0:03:56]} 23. Qc2 {[%emt 0:00:48]} Bb5 {[%emt 0:05:09]} 24. Rd5 {[%emt 0:07:15]} Qxd5 {[%emt 0:07:09]} 25. exd5 {[%emt 0:07:19]} Rxe3 {[%emt 0:00:13]} 26. h3 {[%emt 0:06:10]} Bd3 {[%emt 0:09:17]} 27. Qc1 {[%emt 0:01:07]} Rae8 {[%emt 0:01:26]} 28. Ne4 {[%emt 0:01:26]} Bd4 {[%emt 0:00:42]} 29. Kh1 {[%emt 0:00:12]} Bxe4 {[%emt 0:01:14]} 30. fxe4 {[%emt 0:04:22]} R8xe4 {[%emt 0:00:24]} 31. Qc2 {[%emt 0:03:29]} Re1+ {[%emt 0:00:18]} 32. Kh2 {[%emt 0:00:07]} Be5+ {[%emt 0:00:10]} 0-1

[Event "Gibraltar Challengers A 2020"]
[Site "Caleta"]
[Date "2020.01.21"]
[Round "2.35"]
[White "Garcia-Blazquez Perez, Manuel"]
[Black "Cannon, Richard J"]
[Result "1/2-1/2"]
[ECO "C01"]
[WhiteElo "1825"]
[BlackElo "1990"]
[Annotator "NA"]
[PlyCount "113"]
[EventDate "2020.01.20"]
[EventType "swiss"]
[EventCountry "GGB"]
[SourceTitle "playchess.com"]
[Source "ChessBase"]
[SourceQuality "1"]
[TimeControl "6600+10"]

1. e4 {[%emt 0:00:00]} e6 {[%emt 0:10:41]} 2. d4 {[%emt 0:00:00]} d5 {[%emt 0:00:15]} 3. Bd3 {[%emt 0:00:04]} Nf6 {[%emt 0:00:11]} 4. e5 {[%emt 0:00:06]} Nfd7 {[%emt 0:00:05]} 5. f4 {[%emt 0:00:06]} c5 {[%emt 0:00:08]} 6. c3 {[%emt 0:00:04]} Nc6 {[%emt 0:00:15]} 7. Nf3 {[%emt 0:00:12]} cxd4 {[%emt 0:00:48]} 8. cxd4 {[%emt 0:00:07]} Qb6 {[%emt 0:00:15]} 9. Bc2 {[%emt 0:00:19]} Nb4 {[%emt 0:00:32]} 10. O-O {[%emt 0:01:04]} Nxc2 {[%emt 0:00:06]} 11. Qxc2 {[%emt 0:00:07]} Be7 {[%emt 0:00:36]} 12. Nc3 {[%emt 0:00:07]} O-O {[%emt 0:00:29]} 13. a3 {[%emt 0:00:03]} a5 {[%emt 0:00:36]} 14. Be3 {[%emt 0:00:59]} Qa6 {[%emt 0:05:36]} 15. Ng5 {[%emt 0:23:26]} g6 $16 {[%emt 0:00:53]} (15... f5 $1 $11) 16. f5 {[%emt 0:11:41]} exf5 {[%emt 0:06:07]} 17. Nxd5 {[%emt 0:02:08]} Bd8 {[%emt 0:00:16]} 18. b4 {[%emt 0:10:17]} Nb6 {[%emt 0:11:38]} 19. Nxb6 {[%emt 0:12:19]} Bxb6 {[%emt 0:00:44]} 20. Qb3 {[%emt 0:09:26]} h6 {[%emt 0:10:05]} 21. Nf3 {[%emt 0:10:04]} Be6 {[%emt 0:00:13]} 22. Qb2 {[%emt 0:04:35]} Kg7 {[%emt 0:02:14]} 23. Qd2 {[%emt 0:00:13]} Rh8 {[%emt 0:00:20]} 24. b5 {[%emt 0:03:05]} Qxb5 {[%emt 0:01:50]} 25. Rab1 {[%emt 0:00:35]} Bb3 {[%emt 0:02:43]} 26. d5 {[%emt 0:01:52]} a4 {[%emt 0:01:34]} 27. Nd4 {[%emt 0:08:34]} Qxd5 {[%emt 0:01:27]} 28. Rxb3 {[%emt 0:03:33]} Bxd4 {[%emt 0:00:09]} 29. Bxd4 {[%emt 0:00:03]} Qxb3 {[%emt 0:00:55]} 30. e6+ {[%emt 0:00:05]} f6 {[%emt 0:00:39]} 31. Bxf6+ {[%emt 0:07:47]} Kxf6 {[%emt 0:01:17]} 32. Qd4+ {[%emt 0:00:01]} Ke7 {[%emt 0:02:21]} 33. Qd7+ {[%emt 0:00:05]} Kf6 {[%emt 0:00:06]} 34. Qf7+ {[%emt 0:01:23]} Ke5 {[%emt 0:10:22]} 35. Re1+ {[%emt 0:00:03]} Kd4 {[%emt 0:01:52]} 36. Qd7+ {[%emt 0:00:03]} Kc5 {[%emt 0:01:55]} 37. Re5+ {[%emt 0:00:35]} Kc4 {[%emt 0:01:06]} 38. Qd5+ {[%emt 0:00:17]} Kc3 {[%emt 0:00:13]} 39. Re3+ {[%emt 0:00:05]} Kb2 {[%emt 0:01:04]} 40. Qd2+ {[%emt 0:00:41]} Qc2 {[%emt 0:10:01]} 41. Qd4+ {[%emt 0:00:11]} Ka2 {[%emt 0:00:18]} 42. Qd5+ {[%emt 0:00:22]} Qb3 {[%emt 0:07:24]} 43. Re2+ {[%emt 0:00:01]} Kb1 {[%emt 0:01:00]} 44. Re1+ {[%emt 0:00:01]} Ka2 {[%emt 0:03:42]} 45. Re2+ {[%emt 0:00:03]} Kb1 {[%emt 0:01:01]} 46. Re1+ {[%emt 0:00:32]} Ka2 {[%emt 0:01:21]} 47. Re2+ {[%emt 0:00:04]} Kb1 {[%emt 0:00:43]} 48. Qd2 {[%emt 0:00:18]} Ka1 {[%emt 0:05:28]} 49. Qd4+ {[%emt 0:00:00]} Kb1 {[%emt 0:00:06]} 50. Qd2 {[%emt 0:00:00]} Ka1 {[%emt 0:00:08]} 51. Re1+ {[%emt 0:00:00]} Qb1 {[%emt 0:00:04]} 52. Qc3+ {[%emt 0:00:00]} Ka2 {[%emt 0:00:05]} 53. Qc4+ {[%emt 0:00:38]} Qb3 {[%emt 0:00:23]} 54. Re2+ {[%emt 0:00:02]} Kb1 {[%emt 0:00:43]} 55. Re1+ {[%emt 0:00:01]} Ka2 {[%emt 0:00:20]} 56. Re2+ {[%emt 0:00:05]} Kb1 {[%emt 0:00:14]} 57. Re1+ {[%emt 0:00:19]} 1/2-1/2

[Event "Gibraltar Challengers A 2020"]
[Site "Caleta"]
[Date "2020.01.21"]
[Round "2.36"]
[White "Campuzano, Franco"]
[Black "Paul, Nathanael"]
[Result "0-1"]
[ECO "D02"]
[WhiteElo "1785"]
[BlackElo "1987"]
[Annotator "NA"]
[PlyCount "82"]
[EventDate "2020.01.20"]
[EventType "swiss"]
[EventCountry "GGB"]
[SourceTitle "playchess.com"]
[Source "ChessBase"]
[SourceQuality "1"]
[TimeControl "6600+10"]

1. d4 {[%emt 0:09:05]} d5 {[%emt 0:00:00]} 2. Nf3 {[%emt 0:00:33]} Nf6 {[%emt 0:00:17]} 3. Bf4 {[%emt 0:01:37]} c5 {[%emt 0:00:12]} 4. Nbd2 {[%emt 0:00:51]} cxd4 {[%emt 0:08:20]} 5. Nxd4 {[%emt 0:02:06]} Nc6 {[%emt 0:01:13]} 6. N2f3 {[%emt 0:00:45]} g6 {[%emt 0:05:26]} 7. e3 {[%emt 0:01:11]} a6 {[%emt 0:03:01]} 8. a4 {[%emt 0:01:18]} Bg7 {[%emt 0:02:33]} 9. Be2 {[%emt 0:03:29]} O-O {[%emt 0:02:09]} 10. h3 {[%emt 0:02:07]} Ne4 {[%emt 0:00:13]} 11. O-O {[%emt 0:00:45]} f6 {[%emt 0:00:18]} 12. c4 {[%emt 0:04:04]} e5 {[%emt 0:00:53]} 13. Nxc6 {[%emt 0:01:54]} bxc6 {[%emt 0:00:02]} 14. Bh2 {[%emt 0:00:25]} Be6 {[%emt 0:00:21]} 15. Qc2 $17 {[%emt 0:01:15]} Qa5 {[%emt 0:01:49]} 16. Bd3 {[%emt 0:02:05]} Nc5 {[%emt 0:03:33]} 17. e4 {[%emt 0:12:59]} Nxd3 {[%emt 0:01:13]} 18. Qxd3 {[%emt 0:01:51]} d4 {[%emt 0:04:13]} 19. Rfb1 {[%emt 0:02:52]} Rab8 {[%emt 0:02:38]} 20. Ne1 {[%emt 0:14:02]} f5 21. f3 {[%emt 0:00:10]} Rf7 22. Nc2 {[%emt 0:00:10]} Qc5 23. b4 {[%emt 0:00:10]} Bxc4 24. Qxd4 {[%emt 0:00:10]} exd4 25. bxc5 {[%emt 0:00:10]} Re8 26. Rb4 {[%emt 0:00:10]} Bd3 27. Nxd4 {[%emt 0:00:10]} fxe4 28. a5 {[%emt 0:00:10]} Rd7 29. Raa4 {[%emt 0:00:10]} Bf8 30. Nb3 {[%emt 0:00:10]} Bc2 31. fxe4 {[%emt 0:00:10]} Rd3 32. Bd6 {[%emt 0:00:10]} Bxb3 33. Ra3 {[%emt 0:00:10]} Bc4 34. Rxd3 {[%emt 0:00:10]} Bxd3 35. e5 {[%emt 0:00:10]} Bb5 36. Kf2 {[%emt 0:00:10]} Bxd6 37. exd6 {[%emt 0:00:10]} Re5 38. d7 {[%emt 0:00:10]} Rd5 39. Ke3 {[%emt 0:00:10]} Rxd7 40. Rd4 {[%emt 0:00:10]} Rxd4 41. Kxd4 {[%emt 0:00:10]} Kf7 0-1

[Event "Gibraltar Challengers A 2020"]
[Site "Caleta"]
[Date "2020.01.21"]
[Round "2.37"]
[White "Herzwurm, Robert"]
[Black "Lafour, Jephte"]
[Result "1-0"]
[ECO "B01"]
[WhiteElo "1979"]
[BlackElo "1690"]
[Annotator "NA"]
[PlyCount "45"]
[EventDate "2020.01.20"]
[EventType "swiss"]
[EventCountry "GGB"]
[SourceTitle "playchess.com"]
[Source "ChessBase"]
[SourceQuality "1"]
[TimeControl "6600+10"]

1. e4 {[%emt 0:00:00]} d5 {[%emt 0:00:01]} 2. exd5 {[%emt 0:00:22]} Qxd5 {[%emt 0:00:12]} 3. Nc3 {[%emt 0:00:20]} Qd6 {[%emt 0:00:08]} 4. d4 {[%emt 0:00:51]} c6 {[%emt 0:00:08]} 5. Bd3 {[%emt 0:01:56]} Nf6 {[%emt 0:02:49]} 6. Nge2 {[%emt 0:04:02]} Bg4 {[%emt 0:04:36]} 7. f3 {[%emt 0:03:00]} Bh5 {[%emt 0:00:30]} 8. Bf4 {[%emt 0:03:11]} Qd8 {[%emt 0:00:49]} 9. Qd2 {[%emt 0:04:17]} e6 $14 {[%emt 0:00:45]} 10. a3 {[%emt 0:09:44]} a5 {[%emt 0:10:38]} 11. Bg3 {[%emt 0:18:16]} Bg6 {[%emt 0:01:49]} 12. Ne4 {[%emt 0:04:42]} Be7 {[%emt 0:11:19]} 13. O-O {[%emt 0:06:43]} O-O {[%emt 0:03:07]} 14. c4 {[%emt 0:06:02]} Na6 {[%emt 0:05:53]} 15. Rad1 Nc7 {[%emt 0:00:10]} 16. Qc3 Nfe8 {[%emt 0:00:10]} 17. Nf4 Bf5 {[%emt 0:00:10]} 18. Nf6+ Bxf6 {[%emt 0:00:10]} 19. Bxf5 exf5 {[%emt 0:00:10]} 20. Qd3 g6 {[%emt 0:00:10]} 21. b3 Bh4 {[%emt 0:00:10]} 22. Bf2 Bxf2+ {[%emt 0:00:10]} 23. Rxf2 1-0

[Event "Gibraltar Challengers A 2020"]
[Site "Caleta"]
[Date "2020.01.21"]
[Round "2.38"]
[White "Hng, Mei-Xian Eunice"]
[Black "Manukonda Arun"]
[Result "0-1"]
[ECO "B21"]
[WhiteElo "1661"]
[BlackElo "1959"]
[Annotator "NA"]
[PlyCount "70"]
[EventDate "2020.01.20"]
[EventType "swiss"]
[EventCountry "GGB"]
[SourceTitle "playchess.com"]
[Source "ChessBase"]
[SourceQuality "1"]
[TimeControl "6600+10"]

1. e4 {[%emt 0:00:00]} c5 {[%emt 0:00:12]} 2. d4 {[%emt 0:00:05]} cxd4 {[%emt 0:00:02]} 3. c3 {[%emt 0:00:06]} dxc3 {[%emt 0:00:30]} 4. Nxc3 {[%emt 0:00:09]} Nc6 {[%emt 0:00:19]} 5. Bc4 {[%emt 0:00:14]} e6 {[%emt 0:00:06]} 6. Nf3 {[%emt 0:00:25]} a6 {[%emt 0:00:04]} 7. O-O {[%emt 0:00:36]} b5 {[%emt 0:00:24]} 8. Bb3 {[%emt 0:00:55]} d6 {[%emt 0:00:20]} 9. Qe2 {[%emt 0:04:59]} Ra7 {[%emt 0:01:13]} 10. Be3 {[%emt 0:14:42] B21: Sicilian: 2 f4 and Morra Gambit} Rd7 {[%emt 0:00:02]} 11. Nxb5 {[%emt 0:05:48]} axb5 {[%emt 0:12:19]} 12. Qxb5 {[%emt 0:00:07]} Bb7 {[%emt 0:01:26]} (12... Nge7 $11) 13. Ba4 {[%emt 0:02:34]} Qa5 $146 {[%emt 0:34:24]} ({Predecessor:} 13... Nge7 14. Rfc1 Qa8 15. Nd4 Rc7 16. Qb6 Qxa4 17. Qxc7 Nxd4 18. Bxd4 {0-1 (43) Kacakovski,D (2190)-Ivanov,J (2435) Albena 2009}) 14. Qxa5 {[%emt 0:05:49]} Nxa5 {[%emt 0:00:29]} 15. Bxd7+ {[%emt 0:00:13]} Kxd7 {[%emt 0:00:02]} 16. Rfc1 {[%emt 0:12:40]} Be7 {[%emt 0:06:39]} (16... g6 $14) 17. b4 {[%emt 0:11:27]} Nc6 {[%emt 0:02:10]} 18. Bb6 {[%emt 0:14:18]} Bd8 {[%emt 0:02:31]} 19. Bxd8 {[%emt 0:00:16]} Nxd8 {[%emt 0:00:35]} 20. a4 {[%emt 0:07:24]} Bxe4 {[%emt 0:06:11]} 21. a5 {[%emt 0:00:38]} Ne7 {[%emt 0:03:05]} 22. a6 {[%emt 0:06:10]} Nc8 $11 {[%emt 0:01:31]} 23. b5 {[%emt 0:04:34]} Nb6 {[%emt 0:02:10]} 24. Nd2 {[%emt 0:01:48]} Bd5 {[%emt 0:00:08]} 25. Ra3 {[%emt 0:01:42]} e5 {[%emt 0:01:51]} 26. a7 {[%emt 0:03:34]} Ne6 {[%emt 0:00:49]} 27. Ra6 {[%emt 0:00:48]} Na8 28. Nc4 {[%emt 0:00:10]} Nf4 29. Rc2 {[%emt 0:00:10]} Bxc4 30. Rxc4 {[%emt 0:00:10]} Nd5 31. g3 {[%emt 0:00:10]} Nab6 32. Rc6 {[%emt 0:00:10]} Ra8 33. Ra3 {[%emt 0:00:10]} Nc8 34. Rca6 {[%emt 0:00:10]} Ndb6 35. Rf3 {[%emt 0:00:10]} f6 0-1

[Event "Gibraltar Challengers A 2020"]
[Site "Caleta"]
[Date "2020.01.21"]
[Round "3.22"]
[White "Manukonda Arun"]
[Black "Ruperez, Miguel"]
[Result "0-1"]
[ECO "E32"]
[WhiteElo "1959"]
[BlackElo "2126"]
[Annotator "ChessBase"]
[PlyCount "50"]
[EventDate "2020.01.20"]
[EventType "swiss"]
[EventCountry "GGB"]
[SourceTitle "playchess.com"]
[Source "ChessBase"]
[SourceQuality "1"]
[TimeControl "6600+10"]

1. d4 {[%emt 0:02:53]} Nf6 {[%emt 0:00:27]} 2. c4 {[%emt 0:00:00]} e6 {[%emt 0:00:46]} 3. Nc3 {[%emt 0:00:17]} Bb4 {[%emt 0:01:09]} 4. Qc2 {[%emt 0:00:01]} d6 {[%emt 0:00:23]} 5. Nf3 {[%emt 0:00:11]} Nbd7 {[%emt 0:01:17]} 6. g3 {[%emt 0:00:52]} b6 {[%emt 0:05:21]} 7. Bg2 {[%emt 0:00:13]} Bb7 {[%emt 0:00:07]} 8. O-O {[%emt 0:00:07]} Bxc3 {[%emt 0:00:09]} 9. Qxc3 {[%emt 0:01:46]} O-O {[%emt 0:02:36]} 10. b3 {[%emt 0:18:02]} Qe7 {[%emt 0:09:16]} 11. Bb2 {[%emt 0:01:33]} Ne4 {[%emt 0:06:17]} 12. Qc2 {[%emt 0:00:35]} f5 {[%emt 0:02:48]} 13. Nd2 {[%emt 0:04:01]} Nxd2 {[%emt 0:07:27]} 14. Qxd2 {[%emt 0:02:08]} Bxg2 {[%emt 0:00:30]} 15. Kxg2 {[%emt 0:00:01]} f4 {[%emt 0:03:43]} 16. f3 {[%emt 0:03:24]} Qg5 {[%emt 0:21:18]} 17. Rae1 {[%emt 0:01:47]} Rf6 {[%emt 0:04:02]} 18. e3 {[%emt 0:02:58]} fxg3 {[%emt 0:02:03]} 19. hxg3 {[%emt 0:00:12]} Rg6 {[%emt 0:01:43]} 20. Qf2 {[%emt 0:00:57]} Nf6 {[%emt 0:02:55]} 21. f4 {[%emt 0:06:27]} Qf5 {[%emt 0:02:06]} 22. Qe2 {[%emt 0:18:48]} Ne4 {[%emt 0:05:50]} 23. Rf3 {[%emt 0:00:08]} Qg4 {[%emt 0:01:11]} 24. Kg1 {[%emt 0:07:04]} Nxg3 {[%emt 0:00:58]} 25. Qg2 {[%emt 0:00:04]} Qh4 {[%emt 0:01:09]} 0-1